[Event "36th European Club Cup 2021"]
[Site "Struga"]
[Date "2021.09.23"]
[Round "6.16"]
[White "Thybo, Jesper Sondergaard"]
[Black "Lomasov, Semyon"]
[Result "1-0"]
[ECO "E11"]
[WhiteElo "2587"]
[BlackElo "2526"]
[Annotator "ChessBase"]
[PlyCount "133"]
[EventDate "2021.09.18"]
[EventType "team-tourn"]
[EventCountry "MKD"]
[SourceTitle "playchess.com"]
[Source "ChessBase"]
[SourceQuality "1"]
[TimeControl "40/5400+30:1800+30"]

1. d4 {[%emt 0:00:06]} e6 {[%emt 0:00:06]} 2. c4 {[%emt 0:00:08]} Bb4+ {
[%emt 0:00:03]} 3. Bd2 {[%emt 0:00:08]} a5 {[%emt 0:00:05]} 4. Nf3 {[%emt 0:00:
42]} d5 {[%emt 0:00:44]} 5. Qc2 {[%emt 0:01:02]} Nf6 {[%emt 0:01:37]} 6. g3 {
[%emt 0:00:49]} Nc6 {[%emt 0:01:17]} 7. Bg2 {[%emt 0:01:51]} dxc4 {[%emt 0:00:
40]} 8. Qxc4 {[%emt 0:00:31]} Qd5 {[%emt 0:00:08]} 9. Qd3 {[%emt 0:04:01]} Qf5
{[%emt 0:00:58]} 10. Qxf5 {[%emt 0:02:09]} exf5 {[%emt 0:00:02]} 11. O-O {
[%emt 0:00:29]} Be6 {[%emt 0:01:42]} 12. Rc1 {[%emt 0:07:55]} O-O {[%emt 0:01:
08]} 13. Bf4 {[%emt 0:02:55]} Nd5 {[%emt 0:15:39]} 14. Nc3 {[%emt 0:00:33]} a4
{[%emt 0:01:31]} 15. Nxd5 {[%emt 0:04:06]} Bxd5 {[%emt 0:01:28]} 16. Bxc7 {
[%emt 0:00:20]} Bxf3 {[%emt 0:16:20]} 17. exf3 {[%emt 0:00:47]} Nxd4 {[%emt 0:
08:43]} 18. Rc4 {[%emt 0:02:43]} Nc6 {[%emt 0:01:03]} 19. f4 {[%emt 0:02:25]}
Rfc8 {[%emt 0:01:04]} 20. Bb6 {[%emt 0:03:25]} Ra6 {[%emt 0:17:52]} 21. Be3 {
[%emt 0:05:18]} Be7 {[%emt 0:01:35]} 22. Rd1 {[%emt 0:03:11]} Rd8 {[%emt 0:00:
46]} 23. Rxd8+ {[%emt 0:10:08]} Bxd8 {[%emt 0:00:03]} 24. Rc5 {[%emt 0:02:29]}
Ra5 {[%emt 0:06:56]} 25. Rc2 {[%emt 0:00:37]} Bf6 {[%emt 0:02:04]} 26. Bxc6 {
[%emt 0:06:31]} bxc6 {[%emt 0:00:02]} 27. Rxc6 {[%emt 0:00:07]} h5 {[%emt 0:00:
03]} 28. b4 {[%emt 0:04:43]} axb3 {[%emt 0:00:21]} 29. axb3 {[%emt 0:00:39]}
Rb5 {[%emt 0:03:45]} 30. Rb6 {[%emt 0:04:14]} Rxb6 {[%emt 0:00:06]} 31. Bxb6 {
[%emt 0:00:04]} Kf8 {[%emt 0:00:03]} 32. Kf1 {[%emt 0:01:54]} Ke7 {[%emt 0:00:
14]} 33. Ke2 {[%emt 0:00:21]} Kd6 {[%emt 0:00:27]} 34. Kd3 {[%emt 0:01:11]} Kd5
{[%emt 0:00:11]} 35. b4 {[%emt 0:03:54]} Be7 {[%emt 0:02:07]} 36. b5 {[%emt 0:
03:47]} Bb4 {[%emt 0:04:52]} 37. Bd4 {[%emt 0:04:19]} g6 {[%emt 0:00:15]} 38.
h3 {[%emt 0:12:34]} Be1 {[%emt 0:00:39]} 39. Be3 {[%emt 0:00:20]} Bb4 {[%emt 0:
01:12]} 40. Bd4 {[%emt 0:00:00]} Be1 {[%emt 0:00:00]} 41. Be3 {[%emt 0:02:42]}
Bb4 {[%emt 0:03:51]} 42. f3 {[%emt 0:07:59]} Be1 {[%emt 0:01:46]} 43. g4 {
[%emt 0:00:09]} hxg4 {[%emt 0:01:11]} 44. fxg4 {[%emt 0:00:32]} fxg4 {[%emt 0:
00:13]} 45. hxg4 {[%emt 0:00:06]} Bb4 {[%emt 0:12:36]} 46. Kc2 {[%emt 0:02:55]}
Be1 {[%emt 0:06:30]} 47. Kb3 {[%emt 0:01:08]} Ba5 {[%emt 0:00:05]} 48. Kc2 {
[%emt 0:09:31]} Be1 {[%emt 0:02:21]} 49. Bd2 {[%emt 0:00:47]} Bf2 {[%emt 0:00:
24]} 50. Kb3 {[%emt 0:00:11]} Bb6 {[%emt 0:01:47]} 51. Kb4 {[%emt 0:05:49]} Bc7
{[%emt 0:03:14]} 52. Ka4 {[%emt 0:02:37]} Ke4 {[%emt 0:01:03]} 53. Kb3 {
[%emt 0:01:51]} Kd5 {[%emt 0:00:52]} 54. Kb4 {[%emt 0:00:05]} Bb6 {[%emt 0:00:
10]} 55. Kc3 {[%emt 0:02:08]} Ba5+ {[%emt 0:01:34]} 56. Kd3 {[%emt 0:00:11]}
Bb6 {[%emt 0:00:08]} 57. Be3 {[%emt 0:00:16]} Ba5 {[%emt 0:00:02]} 58. b6 {
[%emt 0:00:36]} Kc6 {[%emt 0:00:08]} 59. Ke4 {[%emt 0:00:21]} Bb4 {[%emt 0:00:
31]} 60. Ke5 {[%emt 0:02:17]} Be7 {[%emt 0:00:08]} 61. g5 {[%emt 0:03:07]} Bd8
{[%emt 0:00:57]} 62. b7 {[%emt 0:01:41]} Kxb7 {[%emt 0:02:52]} 63. Kd6 {
[%emt 0:00:03]} Kc8 {[%emt 0:08:40]} 64. Bd2 {[%emt 0:00:05]} f6 {[%emt 0:03:
00]} 65. f5 {[%emt 0:00:05]} fxg5 {[%emt 0:00:28]} 66. fxg6 {[%emt 0:00:04]}
Bf6 {[%emt 0:00:03]} 67. Bxg5 {[%emt 0:00:41]} 1-0

[Event "36th European Club Cup 2021"]
[Site "Struga"]
[Date "2021.09.23"]
[Round "6.17"]
[White "Arngrimsson, Dagur"]
[Black "Rozentalis, Eduardas"]
[Result "0-1"]
[ECO "E00"]
[WhiteElo "2383"]
[BlackElo "2509"]
[Annotator "ChessBase"]
[PlyCount "82"]
[EventDate "2021.09.18"]
[EventType "team-tourn"]
[EventCountry "MKD"]
[SourceTitle "playchess.com"]
[Source "ChessBase"]
[SourceQuality "1"]
[TimeControl "40/5400+30:1800+30"]

1. d4 {[%emt 0:00:35]} e6 {[%emt 0:00:35]} 2. c4 {[%emt 0:01:05]} Nf6 {[%emt 0:
00:28]} 3. a3 {[%emt 0:00:25]} g6 {[%emt 0:01:21]} 4. Nc3 {[%emt 0:01:46]} Bg7
{[%emt 0:01:05]} 5. Nf3 {[%emt 0:03:20]} O-O {[%emt 0:01:15]} 6. Bg5 {[%emt 0:
10:04]} h6 {[%emt 0:01:27]} 7. Bh4 {[%emt 0:03:57]} d6 {[%emt 0:05:55]} 8. h3 {
[%emt 0:03:42]} g5 {[%emt 0:09:29]} 9. Bg3 {[%emt 0:00:05]} Nh5 {[%emt 0:00:09]
} 10. Bh2 {[%emt 0:01:03]} f5 {[%emt 0:00:07]} 11. g4 {[%emt 0:14:15]} fxg4 {
[%emt 0:06:12]} 12. hxg4 {[%emt 0:00:05]} Nf6 {[%emt 0:00:04]} 13. Rg1 {
[%emt 0:00:34]} Nc6 {[%emt 0:05:52]} 14. e3 {[%emt 0:16:21]} e5 {[%emt 0:04:34]
} 15. d5 {[%emt 0:05:34]} Ne7 {[%emt 0:01:06]} 16. Nd2 {[%emt 0:00:45]} c6 {
[%emt 0:01:49]} 17. Be2 {[%emt 0:07:43]} a6 {[%emt 0:11:58]} 18. Qb3 {[%emt 0:
04:21]} cxd5 {[%emt 0:08:49]} 19. cxd5 {[%emt 0:00:05]} b5 {[%emt 0:00:51]} 20.
O-O-O {[%emt 0:04:15]} Bb7 {[%emt 0:05:49]} 21. Nde4 {[%emt 0:02:17]} Nxe4 {
[%emt 0:09:26]} 22. Nxe4 {[%emt 0:00:06]} Ng6 {[%emt 0:00:10]} 23. Kb1 {
[%emt 0:01:58]} Qd7 {[%emt 0:04:00]} 24. Bg3 {[%emt 0:00:45]} Rad8 {[%emt 0:03:
29]} 25. Bd3 {[%emt 0:08:59]} Ne7 {[%emt 0:05:01]} 26. Bc2 {[%emt 0:00:56]} Rc8
{[%emt 0:01:45]} 27. Qd3 {[%emt 0:01:54]} Bxd5 {[%emt 0:03:13]} 28. Nxg5 {
[%emt 0:02:31]} hxg5 {[%emt 0:01:21]} 29. Qh7+ {[%emt 0:00:54]} Kf7 {[%emt 0:
00:02]} 30. Qh5+ {[%emt 0:03:14]} Ke6 {[%emt 0:01:10]} 31. Bf5+ {[%emt 0:00:34]
} Nxf5 {[%emt 0:02:01]} 32. Qg6+ {[%emt 0:00:29]} Ke7 {[%emt 0:01:17]} 33. Rxd5
{[%emt 0:00:30]} Rf6 {[%emt 0:01:44]} 34. Qxg5 {[%emt 0:00:15]} Bh6 {[%emt 0:
00:07]} 35. Qh5 {[%emt 0:00:25]} Nxg3 {[%emt 0:00:17]} 36. fxg3 {[%emt 0:01:50]
} Qc6 {[%emt 0:01:10]} 37. Rgd1 {[%emt 0:00:40]} Qc2+ {[%emt 0:01:39]} 38. Ka1
{[%emt 0:00:05]} Qg6 {[%emt 0:00:42]} 39. Qh1 {[%emt 0:00:05]} Qxg4 {[%emt 0:
00:59]} 40. R5d2 {[%emt 0:00:00]} Qf3 {[%emt 0:00:00]} 41. Qxf3 {[%emt 0:11:09]
} Rxf3 {[%emt 0:01:30]} 0-1

[Event "36th European Club Cup 2021"]
[Site "Struga"]
[Date "2021.09.23"]
[Round "6.18"]
[White "Chatalbashev, Boris"]
[Black "Lagerman, Robert"]
[Result "1/2-1/2"]
[ECO "A59"]
[WhiteElo "2530"]
[BlackElo "2300"]
[Annotator "ChessBase"]
[PlyCount "117"]
[EventDate "2021.09.18"]
[EventType "team-tourn"]
[EventCountry "MKD"]
[SourceTitle "playchess.com"]
[Source "ChessBase"]
[SourceQuality "1"]
[TimeControl "40/5400+30:1800+30"]

1. d4 {[%emt 0:00:04]} Nf6 {[%emt 0:00:05]} 2. c4 {[%emt 0:00:06]} c5 {[%emt 0:
00:05]} 3. d5 {[%emt 0:00:06]} b5 {[%emt 0:00:06]} 4. cxb5 {[%emt 0:00:06]} a6
{[%emt 0:00:03]} 5. bxa6 {[%emt 0:00:06]} g6 {[%emt 0:00:30]} 6. Nc3 {[%emt 0:
00:07]} Bxa6 {[%emt 0:01:22]} 7. e4 {[%emt 0:00:07]} Bxf1 {[%emt 0:00:04]} 8.
Kxf1 {[%emt 0:00:05]} d6 {[%emt 0:00:09]} 9. Nf3 {[%emt 0:00:06]} Bg7 {[%emt 0:
00:06]} 10. g3 {[%emt 0:00:05]} O-O {[%emt 0:00:18]} 11. Kg2 {[%emt 0:00:02]}
Nbd7 {[%emt 0:01:03]} 12. a4 {[%emt 0:00:10]} Qa5 {[%emt 0:09:55]} 13. Bd2 {
[%emt 0:01:01]} Rfb8 {[%emt 0:03:07]} 14. Nb5 {[%emt 0:01:33]} Qd8 {[%emt 0:00:
19]} 15. Qc2 {[%emt 0:00:39]} Ne8 {[%emt 0:00:52]} 16. Ra3 {[%emt 0:18:50]} Nc7
{[%emt 0:05:53]} 17. Nc3 {[%emt 0:02:03]} Ne5 {[%emt 0:28:31]} 18. Nxe5 {
[%emt 0:01:05]} Bxe5 {[%emt 0:00:11]} 19. Rb1 {[%emt 0:01:40]} Qd7 {[%emt 0:17:
33]} 20. Rb3 {[%emt 0:05:17]} f5 {[%emt 0:06:11]} 21. Rxb8+ {[%emt 0:03:22]}
Rxb8 {[%emt 0:03:02]} 22. a5 {[%emt 0:05:01]} fxe4 {[%emt 0:03:40]} 23. Nxe4 {
[%emt 0:03:06]} Nxd5 {[%emt 0:06:30]} 24. Qc4 {[%emt 0:00:17]} Qe6 {[%emt 0:02:
19]} 25. Kg1 {[%emt 0:08:40]} Nc7 {[%emt 0:00:51]} 26. Qxe6+ {[%emt 0:00:06]}
Nxe6 {[%emt 0:00:03]} 27. b4 {[%emt 0:00:10]} d5 {[%emt 0:04:22]} 28. Ng5 {
[%emt 0:22:55]} Nxg5 {[%emt 0:00:16]} 29. Bxg5 {[%emt 0:00:05]} Rxb4 {[%emt 0:
00:42]} 30. Rxb4 {[%emt 0:01:27]} cxb4 {[%emt 0:00:05]} 31. a6 {[%emt 0:00:09]}
Bb8 {[%emt 0:02:00]} 32. Bxe7 {[%emt 0:02:47]} b3 {[%emt 0:00:06]} 33. Ba3 {
[%emt 0:00:18]} Kf7 {[%emt 0:02:07]} 34. Kf1 {[%emt 0:07:02]} Ke6 {[%emt 0:01:
17]} 35. Ke2 {[%emt 0:00:24]} d4 {[%emt 0:02:30]} 36. Kd3 {[%emt 0:01:03]} Kd5
{[%emt 0:00:03]} 37. Bb2 {[%emt 0:03:57]} Ba7 {[%emt 0:00:04]} 38. f4 {[%emt 0:
00:15]} h5 {[%emt 0:00:29]} 39. h3 {[%emt 0:00:05]} Bb6 {[%emt 0:00:45]} 40. g4
{[%emt 0:00:00]} hxg4 {[%emt 0:00:00]} 41. hxg4 {[%emt 0:00:24]} Ba7 {[%emt 0:
01:34]} 42. Ba3 {[%emt 0:06:22]} Bb6 {[%emt 0:04:21]} 43. Be7 {[%emt 0:04:12]}
Ke6 {[%emt 0:03:36]} 44. Bd8 {[%emt 0:08:21]} Ba7 {[%emt 0:00:34]} 45. Bc7 {
[%emt 0:00:38]} Kd7 {[%emt 0:03:43]} 46. Be5 {[%emt 0:01:34]} Ke6 {[%emt 0:00:
33]} 47. Bg7 {[%emt 0:01:36]} Kd5 {[%emt 0:01:02]} 48. Bf8 {[%emt 0:03:44]} Bb6
{[%emt 0:02:02]} 49. Bb4 {[%emt 0:01:19]} Ba7 {[%emt 0:00:11]} 50. Ba3 {
[%emt 0:02:44]} Bb6 {[%emt 0:00:12]} 51. Bc1 {[%emt 0:01:52]} Ba7 {[%emt 0:00:
10]} 52. Bd2 {[%emt 0:02:03]} Ke6 {[%emt 0:03:05]} 53. Bc1 {[%emt 0:01:02]} Kd5
{[%emt 0:00:04]} 54. g5 {[%emt 0:00:32]} Bb6 {[%emt 0:01:35]} 55. Bb2 {[%emt 0:
00:16]} Ba7 {[%emt 0:01:10]} 56. Ba3 {[%emt 0:00:45]} Bb6 {[%emt 0:00:55]} 57.
Bc1 {[%emt 0:00:30]} Ba7 {[%emt 0:00:07]} 58. Bb2 {[%emt 0:00:06]} Bb6 {
[%emt 0:00:07]} 59. Bc1 {[%emt 0:17:33]} 1/2-1/2

[Event "36th European Club Cup 2021"]
[Site "Struga"]
[Date "2021.09.23"]
[Round "6.21"]
[White "Miladinovic, Igor"]
[Black "Asadli, Vugar"]
[Result "0-1"]
[ECO "A45"]
[WhiteElo "2536"]
[BlackElo "2578"]
[Annotator "ChessBase"]
[PlyCount "104"]
[EventDate "2021.09.18"]
[EventType "team-tourn"]
[EventCountry "MKD"]
[SourceTitle "playchess.com"]
[Source "ChessBase"]
[SourceQuality "1"]
[TimeControl "40/5400+30:1800+30"]

1. d4 {[%emt 0:00:04]} Nf6 {[%emt 0:00:06]} 2. Bg5 {[%emt 0:00:16]} c5 {
[%emt 0:00:42]} 3. dxc5 {[%emt 0:01:30]} e6 {[%emt 0:02:38]} 4. e3 {[%emt 0:00:
44]} Bxc5 {[%emt 0:00:41]} 5. Nd2 {[%emt 0:00:08]} d5 {[%emt 0:00:59]} 6. Ngf3
{[%emt 0:00:32]} h6 {[%emt 0:01:05]} 7. Bh4 {[%emt 0:05:18]} Nc6 {[%emt 0:02:
21]} 8. h3 {[%emt 0:02:53]} O-O {[%emt 0:01:09]} 9. a3 {[%emt 0:06:13]} Bd6 {
[%emt 0:06:22]} 10. Bxf6 {[%emt 0:09:37]} Qxf6 {[%emt 0:00:57]} 11. c3 {
[%emt 0:00:02]} Bc7 {[%emt 0:11:58]} 12. Bd3 {[%emt 0:05:19]} e5 {[%emt 0:06:
44]} 13. e4 {[%emt 0:00:42]} Be6 {[%emt 0:03:24]} 14. Qe2 {[%emt 0:01:38]} Rad8
{[%emt 0:02:00]} 15. exd5 {[%emt 0:10:08]} Bxd5 {[%emt 0:00:59]} 16. Ne4 {
[%emt 0:05:14]} Qe6 {[%emt 0:04:08]} 17. g4 {[%emt 0:08:46]} Ne7 {[%emt 0:01:
45]} 18. Nh4 {[%emt 0:02:05]} Bc6 {[%emt 0:10:14]} 19. O-O-O {[%emt 0:02:36]}
Nd5 {[%emt 0:01:24]} 20. Ng2 {[%emt 0:00:36]} Bb6 {[%emt 0:02:27]} 21. Bc4 {
[%emt 0:06:01]} Qe7 {[%emt 0:01:32]} 22. Bb5 {[%emt 0:06:48]} Nxc3 {[%emt 0:01:
19]} 23. Nxc3 {[%emt 0:03:34]} Bxg2 {[%emt 0:01:19]} 24. Rhg1 {[%emt 0:04:14]}
Rxd1+ {[%emt 0:00:45]} 25. Qxd1 {[%emt 0:01:41]} Rd8 {[%emt 0:01:44]} 26. Qe2 {
[%emt 0:00:06]} Qg5+ {[%emt 0:02:44]} 27. Kc2 {[%emt 0:00:44]} Bxh3 {[%emt 0:
02:34]} 28. Rg3 {[%emt 0:01:00]} Qh4 {[%emt 0:06:31]} 29. Qf3 {[%emt 0:00:25]}
Bxg4 {[%emt 0:01:09]} 30. Rxg4 {[%emt 0:03:14]} Qxf2+ {[%emt 0:00:04]} 31. Qxf2
{[%emt 0:00:08]} Bxf2 {[%emt 0:00:02]} 32. Bc4 {[%emt 0:03:51]} Bd4 {[%emt 0:
00:55]} 33. Ne4 {[%emt 0:02:09]} Kf8 {[%emt 0:01:45]} 34. Rg3 {[%emt 0:01:29]}
f5 {[%emt 0:01:23]} 35. Rf3 {[%emt 0:00:27]} g6 {[%emt 0:00:08]} 36. Ng3 {
[%emt 0:00:28]} Kg7 {[%emt 0:01:59]} 37. Nxf5+ {[%emt 0:02:39]} gxf5 {[%emt 0:
00:13]} 38. Rxf5 {[%emt 0:00:01]} Rc8 {[%emt 0:00:22]} 39. Kd3 {[%emt 0:00:28]}
Bxb2 {[%emt 0:00:26]} 40. Rf7+ {[%emt 0:00:00]} Kg6 {[%emt 0:00:00]} 41. Re7 {
[%emt 0:05:45]} b6 {[%emt 0:04:18]} 42. Bf7+ {[%emt 0:02:32]} Kf6 {[%emt 0:00:
19]} 43. Rxa7 {[%emt 0:00:02]} Rc3+ {[%emt 0:00:16]} 44. Ke4 {[%emt 0:00:04]}
Rxa3 {[%emt 0:00:08]} 45. Rb7 {[%emt 0:00:30]} Ra4+ {[%emt 0:00:31]} 46. Ke3 {
[%emt 0:00:28]} Bd4+ {[%emt 0:00:44]} 47. Kf3 {[%emt 0:00:38]} Ra3+ {[%emt 0:
00:53]} 48. Ke4 {[%emt 0:00:23]} Re3+ {[%emt 0:00:05]} 49. Kd5 {[%emt 0:00:03]}
Bc5 {[%emt 0:00:03]} 50. Be8 {[%emt 0:00:15]} Rd3+ {[%emt 0:00:40]} 51. Ke4 {
[%emt 0:00:20]} Rd4+ {[%emt 0:00:02]} 52. Kf3 {[%emt 0:00:04]} e4+ {[%emt 0:00:
15]} 0-1

[Event "36th European Club Cup 2021"]
[Site "Struga"]
[Date "2021.09.23"]
[Round "6.22"]
[White "Suleymanli, Aydin"]
[Black "Perunovic, Milos"]
[Result "1/2-1/2"]
[ECO "A57"]
[WhiteElo "2536"]
[BlackElo "2566"]
[Annotator "ChessBase"]
[PlyCount "74"]
[EventDate "2021.09.18"]
[EventType "team-tourn"]
[EventCountry "MKD"]
[SourceTitle "playchess.com"]
[Source "ChessBase"]
[SourceQuality "1"]
[TimeControl "40/5400+30:1800+30"]

1. d4 {[%emt 0:00:02]} Nf6 {[%emt 0:00:28]} 2. c4 {[%emt 0:01:05]} c5 {[%emt 0:
00:26]} 3. d5 {[%emt 0:00:07]} b5 {[%emt 0:00:27]} 4. Nf3 {[%emt 0:00:20]} g6 {
[%emt 0:04:39]} 5. cxb5 {[%emt 0:06:12]} a6 {[%emt 0:00:33]} 6. b6 {[%emt 0:00:
06]} Qxb6 {[%emt 0:02:13]} 7. Nc3 {[%emt 0:00:09]} Bg7 {[%emt 0:00:07]} 8. e4 {
[%emt 0:00:22]} d6 {[%emt 0:00:08]} 9. Nd2 {[%emt 0:00:22]} O-O {[%emt 0:02:56]
} 10. Be2 {[%emt 0:00:12]} Nbd7 {[%emt 0:01:56]} 11. Nc4 {[%emt 0:00:36]} Qd8 {
[%emt 0:00:08]} 12. Bf4 {[%emt 0:00:22]} Nb6 {[%emt 0:13:56]} 13. Ne3 {[%emt 0:
01:17]} a5 {[%emt 0:07:09]} 14. a4 {[%emt 0:01:27]} Ba6 {[%emt 0:00:59]} 15.
Bxa6 {[%emt 0:04:18]} Rxa6 {[%emt 0:02:11]} 16. Qe2 {[%emt 0:00:05]} Ra8 {
[%emt 0:04:41]} 17. O-O {[%emt 0:00:56]} Rb8 {[%emt 0:09:55]} 18. Rfd1 {
[%emt 0:01:01]} Qc8 {[%emt 0:09:20]} 19. h3 {[%emt 0:03:04]} Qb7 {[%emt 0:03:
29]} 20. Bh2 {[%emt 0:10:32]} Ne8 {[%emt 0:05:17]} 21. e5 {[%emt 0:04:57]} dxe5
{[%emt 0:03:49]} 22. Ng4 {[%emt 0:16:11]} Nd7 {[%emt 0:07:03]} 23. Nxe5 {
[%emt 0:02:28]} Nxe5 {[%emt 0:00:52]} 24. Bxe5 {[%emt 0:00:07]} Bxe5 {[%emt 0:
01:01]} 25. Qxe5 {[%emt 0:00:06]} Nd6 {[%emt 0:00:18]} 26. Rab1 {[%emt 0:01:24]
} Qd7 {[%emt 0:02:30]} 27. Re1 {[%emt 0:00:42]} Rb7 {[%emt 0:00:52]} 28. Re2 {
[%emt 0:01:25]} Rfb8 {[%emt 0:03:08]} 29. Rbe1 {[%emt 0:01:36]} Rxb2 {[%emt 0:
09:11]} 30. Qxe7 {[%emt 0:00:45]} Qxe7 {[%emt 0:00:11]} 31. Rxe7 {[%emt 0:00:
09]} Rc2 {[%emt 0:01:45]} 32. Nb5 {[%emt 0:04:31]} Rd8 {[%emt 0:00:21]} 33. Ra7
{[%emt 0:03:51]} Nxb5 {[%emt 0:03:20]} 34. axb5 {[%emt 0:00:25]} Rxd5 {[%emt 0:
01:02]} 35. Rb1 {[%emt 0:03:02]} Rdd2 {[%emt 0:00:36]} 36. b6 {[%emt 0:00:32]}
Rxf2 {[%emt 0:00:54]} 37. b7 {[%emt 0:00:17]} Rxg2+ {[%emt 0:00:05]} 1/2-1/2

[Event "36th European Club Cup 2021"]
[Site "Struga"]
[Date "2021.09.23"]
[Round "6.23"]
[White "Miljkovic, Miroslav D"]
[Black "Sadikhov, Ulvi"]
[Result "1/2-1/2"]
[ECO "A21"]
[WhiteElo "2470"]
[BlackElo "2509"]
[Annotator "ChessBase"]
[PlyCount "60"]
[EventDate "2021.09.18"]
[EventType "team-tourn"]
[EventCountry "MKD"]
[SourceTitle "playchess.com"]
[Source "ChessBase"]
[SourceQuality "1"]
[TimeControl "40/5400+30:1800+30"]

1. d4 {[%emt 0:00:03]} d6 {[%emt 0:00:05]} 2. c4 {[%emt 0:01:24]} e5 {[%emt 0:
00:15]} 3. Nc3 {[%emt 0:00:29]} exd4 {[%emt 0:00:14]} 4. Qxd4 {[%emt 0:00:07]}
Nc6 {[%emt 0:00:09]} 5. Qd2 {[%emt 0:00:08]} Nf6 {[%emt 0:00:27]} 6. b3 {
[%emt 0:05:01]} g6 {[%emt 0:00:45]} 7. Bb2 {[%emt 0:03:14]} Bg7 {[%emt 0:00:16]
} 8. g3 {[%emt 0:01:56]} O-O {[%emt 0:00:08]} 9. Bg2 {[%emt 0:05:48]} Re8 {
[%emt 0:00:08]} 10. Nf3 {[%emt 0:01:22]} Bf5 {[%emt 0:00:30]} 11. O-O {[%emt 0:
01:38]} Ne4 {[%emt 0:00:10]} 12. Nxe4 {[%emt 0:00:17]} Bxe4 {[%emt 0:00:12]}
13. Rfd1 {[%emt 0:07:18]} a5 {[%emt 0:01:57]} 14. a3 {[%emt 0:03:30]} Qe7 {
[%emt 0:14:27]} 15. Rac1 {[%emt 0:03:13]} Rad8 {[%emt 0:17:12]} 16. Bxg7 {
[%emt 0:23:49]} Kxg7 {[%emt 0:00:07]} 17. b4 {[%emt 0:02:12]} axb4 {[%emt 0:02:
03]} 18. axb4 {[%emt 0:00:14]} Qf6 {[%emt 0:09:53]} 19. b5 {[%emt 0:05:14]} Ne5
{[%emt 0:11:47]} 20. Nxe5 {[%emt 0:00:55]} Qxe5 {[%emt 0:02:40]} 21. Bxe4 {
[%emt 0:04:35]} Qxe4 {[%emt 0:00:08]} 22. b6 {[%emt 0:04:52]} Qxe2 {[%emt 0:12:
03]} 23. Qxe2 {[%emt 0:08:35]} Rxe2 {[%emt 0:02:12]} 24. bxc7 {[%emt 0:00:02]}
Rc8 {[%emt 0:00:16]} 25. Rxd6 {[%emt 0:03:28]} Rxc7 {[%emt 0:00:05]} 26. Rb6 {
[%emt 0:00:34]} Re4 {[%emt 0:00:21]} 27. Kg2 {[%emt 0:00:33]} Rexc4 {[%emt 0:
00:04]} 28. Rxc4 {[%emt 0:00:13]} Rxc4 {[%emt 0:00:02]} 29. Rxb7 {[%emt 0:00:
02]} h5 {[%emt 0:00:04]} 30. h4 {[%emt 0:00:06]} Rc6 {[%emt 0:00:02]} 1/2-1/2

[Event "36th European Club Cup 2021"]
[Site "Struga"]
[Date "2021.09.23"]
[Round "6.24"]
[White "Ahmadzada, Ahmad"]
[Black "Stankovic, Milos"]
[Result "1-0"]
[ECO "B13"]
[WhiteElo "2462"]
[BlackElo "2409"]
[Annotator "ChessBase"]
[PlyCount "61"]
[EventDate "2021.09.18"]
[EventType "team-tourn"]
[EventCountry "MKD"]
[SourceTitle "playchess.com"]
[Source "ChessBase"]
[SourceQuality "1"]
[TimeControl "40/5400+30:1800+30"]

1. e4 {[%emt 0:00:06]} c6 {[%emt 0:01:13]} 2. d4 {[%emt 0:00:30]} d5 {[%emt 0:
00:28]} 3. exd5 {[%emt 0:00:10]} cxd5 {[%emt 0:00:29]} 4. Bd3 {[%emt 0:00:06]}
Nf6 {[%emt 0:00:31]} 5. h3 {[%emt 0:03:15]} g6 {[%emt 0:00:27]} 6. Nf3 {
[%emt 0:00:48]} Nc6 {[%emt 0:00:28]} 7. O-O {[%emt 0:01:39]} Bg7 {[%emt 0:00:
46]} 8. c3 {[%emt 0:01:52]} O-O {[%emt 0:01:17]} 9. Qc2 {[%emt 0:11:57]} Qc7 {
[%emt 0:00:59]} 10. Be3 {[%emt 0:16:06]} Nh5 {[%emt 0:02:59]} 11. Qc1 {[%emt 0:
00:25]} e5 {[%emt 0:05:49]} 12. dxe5 {[%emt 0:00:42]} Nxe5 {[%emt 0:00:15]} 13.
Nxe5 {[%emt 0:05:52]} Bxe5 {[%emt 0:00:36]} 14. Re1 {[%emt 0:00:19]} Nf4 {
[%emt 0:02:56]} 15. Bf1 {[%emt 0:02:05]} Bf5 {[%emt 0:01:37]} 16. Nd2 {[%emt 0:
02:11]} Bd6 {[%emt 0:07:26]} 17. Nf3 {[%emt 0:08:54]} Be4 {[%emt 0:12:44]} 18.
Ng5 {[%emt 0:01:06]} Rad8 {[%emt 0:03:52]} 19. Nxe4 {[%emt 0:06:01]} dxe4 {
[%emt 0:00:58]} 20. Qc2 {[%emt 0:01:43]} Rfe8 {[%emt 0:22:19]} 21. Rad1 {
[%emt 0:03:01]} b6 {[%emt 0:05:15]} 22. Bd4 {[%emt 0:06:17]} Qe7 {[%emt 0:04:
36]} 23. g3 {[%emt 0:02:53]} Nh5 {[%emt 0:02:55]} 24. Bb5 {[%emt 0:01:20]} Qe6
{[%emt 0:04:05]} 25. Bxe8 {[%emt 0:01:39]} Rxe8 {[%emt 0:00:07]} 26. Kg2 {
[%emt 0:02:23]} Qxa2 {[%emt 0:02:00]} 27. Rxe4 {[%emt 0:03:32]} Qd5 {[%emt 0:
03:15]} 28. f3 {[%emt 0:00:33]} Rc8 {[%emt 0:00:47]} 29. Be5 {[%emt 0:02:19]}
Qxe5 {[%emt 0:01:36]} 30. Rxe5 {[%emt 0:00:19]} Bxe5 {[%emt 0:00:05]} 31. f4 {
[%emt 0:00:14]} 1-0

[Event "36th European Club Cup 2021"]
[Site "Struga"]
[Date "2021.09.23"]
[Round "6.27"]
[White "Zvjaginsev, Vadim"]
[Black "Mikhalchishin, Adrian"]
[Result "1-0"]
[ECO "C45"]
[WhiteElo "2603"]
[BlackElo "2455"]
[Annotator "ChessBase"]
[PlyCount "77"]
[EventDate "2021.09.18"]
[EventType "team-tourn"]
[EventCountry "MKD"]
[SourceTitle "playchess.com"]
[Source "ChessBase"]
[SourceQuality "1"]
[TimeControl "40/5400+30:1800+30"]

1. e4 {[%emt 0:00:05]} e5 {[%emt 0:00:09]} 2. Nf3 {[%emt 0:00:06]} Nc6 {
[%emt 0:00:07]} 3. d4 {[%emt 0:00:04]} exd4 {[%emt 0:00:13]} 4. Nxd4 {[%emt 0:
00:05]} Qf6 {[%emt 0:01:04]} 5. Nxc6 {[%emt 0:00:15]} dxc6 {[%emt 0:04:58]} 6.
Nc3 {[%emt 0:01:27]} Bd6 {[%emt 0:05:15]} 7. Be3 {[%emt 0:14:02]} Qg6 {[%emt 0:
06:23]} 8. Qd2 {[%emt 0:04:14]} f5 {[%emt 0:02:05]} 9. Bf4 {[%emt 0:26:14]}
fxe4 {[%emt 0:04:52]} 10. Bxd6 {[%emt 0:00:12]} cxd6 {[%emt 0:07:24]} 11. O-O-O
{[%emt 0:00:31]} d5 {[%emt 0:17:53]} 12. Nxd5 {[%emt 0:02:39]} Qd6 {[%emt 0:17:
48]} 13. Nc3 {[%emt 0:15:11]} Qxd2+ {[%emt 0:00:14]} 14. Rxd2 {[%emt 0:00:19]}
Nf6 {[%emt 0:00:06]} 15. Bc4 {[%emt 0:00:15]} Bf5 {[%emt 0:04:14]} 16. Re1 {
[%emt 0:00:13]} Kf8 {[%emt 0:00:06]} 17. a4 {[%emt 0:02:57]} g6 {[%emt 0:08:18]
} 18. Nd1 {[%emt 0:05:51]} Re8 {[%emt 0:04:14]} 19. Ne3 {[%emt 0:00:51]} Kg7 {
[%emt 0:01:12]} 20. h3 {[%emt 0:01:08]} h5 {[%emt 0:00:27]} 21. b4 {[%emt 0:00:
15]} h4 {[%emt 0:02:48]} 22. Kb2 {[%emt 0:05:11]} Bc8 {[%emt 0:03:53]} 23. b5 {
[%emt 0:02:12]} Bd7 {[%emt 0:01:15]} 24. Be2 {[%emt 0:03:27]} Re7 {[%emt 0:00:
45]} 25. c4 {[%emt 0:01:13]} c5 {[%emt 0:02:19]} 26. Kc3 {[%emt 0:01:20]} Rf8 {
[%emt 0:00:15]} 27. Bd1 {[%emt 0:00:49]} Ref7 {[%emt 0:00:41]} 28. a5 {[%emt 0:
00:58]} Bc8 {[%emt 0:00:37]} 29. Bc2 {[%emt 0:02:11]} Bf5 {[%emt 0:01:16]} 30.
Red1 {[%emt 0:01:04]} Re7 {[%emt 0:00:55]} 31. Rd6 {[%emt 0:00:37]} Bc8 {
[%emt 0:00:29]} 32. R1d2 {[%emt 0:01:07]} Rd7 {[%emt 0:00:24]} 33. Rxd7+ {
[%emt 0:01:44]} Bxd7 {[%emt 0:00:01]} 34. Rd6 {[%emt 0:01:57]} Bf5 {[%emt 0:00:
20]} 35. b6 {[%emt 0:01:18]} axb6 {[%emt 0:01:53]} 36. Rxb6 {[%emt 0:00:05]}
Rf7 {[%emt 0:00:03]} 37. Nd5 {[%emt 0:02:34]} Ne8 {[%emt 0:02:30]} 38. Kd2 {
[%emt 0:00:32]} Rd7 {[%emt 0:00:12]} 39. Ba4 {[%emt 0:00:16]} 1-0